Cogmind - Beta 15 @@@ ROGUE MODE // 2025.07.04 @ 10:33:50 Player: Tereza Result: Self-destructed Performance ------------- Evolutions (3) 1500 Regions Visited (9) 1800 Robots Destroyed (182) 910 Value Destroyed (8090) 8090 Prototype IDs (11) 220 Alien Tech Used (0) 0 Bonus (2843) 2843 TOTAL SCORE: 15363 Bonus ------- High Alert Combat Kills 496 Follower Combat Kills 447 Entered Garrisons 400 Used RIF Installer 1500 Cogmind --------- Core Integrity 590/700 Matter 5/300 Energy 41/290 System Corruption 4% Temperature Cool (0) Movement Treading (238) Ox1 Location -7/Factory Parts ------- > --- POWER (1) -------- Reinforced Deuterium Engine > --- PROPULSION (4) --- Improved Treads Armored Treads Advanced Treads > --- UTILITY (6) ------ High-capacity Storage Unit Advanced Visual Processing Unit Improved Utility Shielding Shield Generator Hacking Suite Relay Coupler [NC] (28) > --- WEAPON (2) ------- Enhanced Autogun Missile Launcher > --- INVENTORY (20) --- Nuclear Core Nuclear Core Improved Deuterium Engine Advanced Treads Large Matter Pod (0) Improved Sensor Array Experimental Sensor Array Improved Signal Interpreter Core Analyzer Kinecellerator Improved Utility Shielding Improved Light Armor Plating High-powered Shotgun High-powered Shotgun High-powered Shotgun Gauss Rifle Advanced Assault Cannon Advanced Assault Cannon Missile Launcher Remote Datajack Peak State ------------ > --- POWER ------------ Reinforced Deuterium Engine > --- PROPULSION ------- Light Treads Improved Treads Armored Treads Advanced Treads > --- UTILITY ---------- High-capacity Storage Unit Advanced Visual Processing Unit Improved Utility Shielding Shield Generator Hacking Suite Relay Coupler [NC] > --- WEAPON ----------- Enhanced Autogun Advanced Assault Cannon > --- INVENTORY -------- Nuclear Core Nuclear Core Improved Deuterium Engine Advanced Treads Large Matter Pod Improved Sensor Array Experimental Sensor Array Improved Signal Interpreter Core Analyzer Kinecellerator Improved Utility Shielding Improved Light Armor Plating High-powered Shotgun High-powered Shotgun High-powered Shotgun Gauss Rifle Advanced Assault Cannon Missile Launcher Missile Launcher Remote Datajack [Rating: 41] Favorites ----------- Power Ion Engine Engine Ion Engine Power Core Light Nuclear Core Propulsion Light Treads Treads Light Treads Utility High-capacity Storage Unit Device Shield Generator Storage High-capacity Storage Unit Processor Visual Processing Unit Hackware Relay Coupler [NC] Protection Hardened Medium Armor Plating Weapon Improved Assault Rifle Energy Cannon Advanced Beam Cannon Ballistic Gun Improved Assault Rifle Ballistic Cannon Assault Cannon Launcher Rocket Launcher Special Melee Weapon Datajack Build | -11 -10 -10 -9 -9 -8 -8 -8 -8 -7 ------- Run | Yrd Mat Min Mat Sto Mat Gar Mat Gar Fac Slots Evolved 6 | . . . 2 . 2 . . . 2 Power . | . . . . . . . . . . Propulsion 2 | . . . 1 . 1 . . . . Utility 4 | . . . 1 . 1 . . . 2 Weapon . | . . . . . . . . . . Parts Attached 94 | 6 4 3 13 8 8 11 24 6 11 Power 8 | 1 . . 2 . 1 1 3 . . Engine 4 | 1 . . 2 . . . 1 . . Core 4 | . . . . . 1 1 2 . . Reactor . | . . . . . . . . . . Propulsion 39 | 2 . 1 6 2 3 6 10 5 4 Treads 39 | 2 . 1 6 2 3 6 10 5 4 Leg . | . . . . . . . . . . Wheel . | . . . . . . . . . . Hover . | . . . . . . . . . . Flight . | . . . . . . . . . . Utility 26 | 1 2 2 3 3 2 3 5 1 4 Device 6 | . . . 2 1 . 1 2 . . Storage 4 | 1 1 1 . . 1 . . . . Processor 3 | . . . . . 1 . 2 . . Hackware 3 | . . . . . . . . . 3 Protection 10 | . 1 1 1 2 . 2 1 1 1 Artifact . | . . . . . . . . . . Weapon 21 | 2 2 . 2 3 2 1 6 . 3 Energy Gun . | . . . . . . . . . . Energy Cannon 1 | . . . . 1 . . . . . Ballistic Gun 10 | 2 1 . 1 . . 1 4 . 1 Ballistic Cannon 7 | . 1 . 1 . 2 . 2 . 1 Launcher 2 | . . . . 1 . . . . 1 Special Weapon . | . . . . . . . . . . Impact Weapon . | . . . . . . . . . . Slashing Weapon . | . . . . . . . . . . Piercing Weapon . | . . . . . . . . . . Special Melee Weapon 1 | . . . . 1 . . . . . Unidentified Prototypes 2 | . 1 . . . . . 1 . . Parts Lost 23 | . . 2 6 1 . 5 4 1 4 Power 3 | . . . 1 . . 1 1 . . Propulsion 10 | . . 1 3 . . 1 1 1 3 Utility 6 | . . 1 1 1 . 2 1 . . Weapon 4 | . . . 1 . . 1 1 . 1 Highest Loss Streak 4 | . . 2 1 1 . 4 3 1 3 To Critical Strikes . | . . . . . . . . . . Average Backups 19 | 2 16 19 19 19 19 19 19 19 19 Power 2 | . 2 3 2 1 1 1 2 2 2 Propulsion 3 | 1 2 2 2 5 4 3 4 3 2 Utility 6 | . 4 5 6 5 7 8 7 6 7 Weapon 5 | . 6 8 7 5 4 3 4 6 6 Tool/Special . | . . . . . . . . . . Unused Backups 41 | . 1 . 9 4 2 1 5 2 17 Power 5 | . . . . 1 . 1 1 . 2 Propulsion 5 | . 1 . 2 . . . 1 . 1 Utility 13 | . . . 1 2 2 . . . 8 Weapon 15 | . . . 6 1 . . 2 1 5 Tool/Special 3 | . . . . . . . 1 1 1 Average Slot Usage (%) 97 | . 93 90 96 99 99 98 99 99 99 Engine 7 | . 14 14 10 11 3 . 2 9 7 Core 2 | . . . . . 5 8 6 . . Treads 32 | . 27 28 32 33 36 35 35 35 30 Device 9 | . . . 16 15 9 9 9 9 7 Storage 10 | . 14 14 11 11 9 9 9 9 7 Processor 4 | . . . . . 8 9 9 9 7 Protection 7 | . 8 5 2 5 9 8 9 9 10 Energy Cannon 1 | . . . . 8 2 . . . . Ballistic Gun 13 | . 25 14 10 11 9 13 15 9 7 Ballistic Cannon 5 | . 2 14 11 1 6 4 2 9 6 Peak Build Rating 41 | 6 12 13 18 23 24 25 31 30 41 Average Rating 21 | 4 10 12 16 20 23 24 27 29 38 On Entrance 17 | . 6 12 13 18 20 24 25 30 30 Naked Turns . | . . . . . . . . . . Heaviest Build 70 | 14 54 54 57 62 61 63 68 68 70 Greatest Support 91 | 40 40 40 60 60 80 80 82 80 91 Greatest Overweight (x) 4 | 4 2 1 1 1 . 1 1 . 1 Average Overweight (x) . | . . 1 . . . . . . . Largest Inventory Capacity 20 | 8 20 20 20 20 20 20 20 20 20 Average Capacity 19 | 7 19 20 20 20 20 20 20 20 20 Most Carried 20 | 4 20 20 20 20 20 20 20 20 20 Average Carried 19 | 2 16 19 19 19 19 19 19 19 19 Final Capacity 20 | 8 20 20 20 20 20 20 20 20 20 Final Carried 20 | 4 20 20 20 20 20 20 20 19 20 Class Distribution -------------------- 49% | Mutant 42% | Scavenger-Mutant 8% | Commander-Mutant Dominant Class ---------------- Mutant | -10/Materials Mutant | -10/Mines Mutant | -9/Materials Commander-Mutant | -9/Storage Scavenger-Mutant | -8/Materials Scavenger-Mutant | -8/Garrison Scavenger-Mutant | -8/Materials Scavenger-Mutant | -8/Garrison Mutant | -7/Factory Resources | -11 -10 -10 -9 -9 -8 -8 -8 -8 -7 ----------- Run | Yrd Mat Min Mat Sto Mat Gar Mat Gar Fac Matter Collected 5311 | 220 492 115 748 436 146 915 1114 681 444 Remotely . | . . . . . . . . . . Salvage Created 6446 | . 705 92 1249 735 246 899 1500 673 347 Parts 398 | . 45 3 78 43 19 59 87 50 14 Haulers Intercepted 12 | . 2 . 3 3 1 . 3 . . Recyclers Shooed 5 | . . . 3 2 . . . . . Parts Field Recycled . | . . . . . . . . . . Retrieved Matter . | . . . . . . . . . . Parts Self-Destructed . | . . . . . . . . . . Prevented . | . . . . . . . . . . Kills | -11 -10 -10 -9 -9 -8 -8 -8 -8 -7 ------- Run | Yrd Mat Min Mat Sto Mat Gar Mat Gar Fac Combat Hostiles Destroyed 160 | . 11 5 31 15 5 25 30 20 18 Guns 91 | . 11 3 17 5 3 16 26 5 5 Cannons 58 | . . 2 14 4 2 9 4 14 9 AOE 10 | . . . . 6 . . . . 4 Classes Destroyed 17 | . 6 1 1 1 1 4 1 1 1 Worker 2 | . . . . 1 . . . . 1 Builder 5 | . 1 . . 1 . . 2 . 1 Hauler 12 | . 2 . 3 3 1 . 3 . . Recycler 3 | . 1 . 1 1 . . . . . Operator 5 | . 1 . 1 1 . . 2 . . Watcher 4 | . 1 . 1 . . . 2 . . Swarmer 26 | . . 3 7 4 . 6 3 3 . Cutter 3 | . . . . . . 3 . . . Grunt 68 | . 11 2 15 10 2 3 18 6 1 Brawler 2 | . . . . . . 1 . 1 . Duelist 3 | . . . . . 1 1 . 1 . Sentry 30 | . . . 9 2 2 6 7 3 1 Specialist 3 | . . . . . . 3 . . . Hunter 4 | . . . . . . 2 1 1 . Programmer 11 | . . . . . . . . 5 6 Heavy 1 | . . . . . . . 1 . . Assembled 10 | . . . . . . . . . 10 Best Kill Streak 16 | . 4 3 5 16 3 4 4 4 10 Combat Bots Only 13 | . 3 3 5 13 3 4 3 4 10 Max Kills in Single Turn 4 | . 1 1 2 4 1 1 2 1 4 Gunslinging . | . . . . . . . . . . Exploded 4 | . . . . 4 . . . . 4 Melee . | . . . . . . . . . . Uniques/NPCs Destroyed . | . . . . . . . . . . Combat | -11 -10 -10 -9 -9 -8 -8 -8 -8 -7 -------- Run | Yrd Mat Min Mat Sto Mat Gar Mat Gar Fac Hostile Shots Fired 788 | . 45 38 95 57 23 167 132 104 127 Missed 200 | . 18 8 21 20 3 38 29 27 36 Hits 588 | . 27 30 74 37 20 129 103 77 91 Melee 36 | . . . . . 1 21 . 6 8 Projectile 552 | . 27 30 74 37 19 108 103 71 83 AOE 2 | . . . . . . 1 1 . . Critical Strikes 19 | . 1 . 2 1 1 11 2 . 1 Actively Blocked 1 | . . . . . . . 1 . . Part Disruptions 4 | . . . . . . . . . 4 Damage Taken 6993 | . 369 364 849 302 240 1508 1554 928 879 Core 729 | . 55 18 89 31 25 147 187 67 110 Absorbed by Shields 1859 | . . . 109 120 93 503 359 342 333 Redirected to Shielding 74 | . . . . . . . 25 22 27 Regen/Repaired (Parts) 337 | . 99 . . 21 55 . 162 . . Core Remaining (%) 65 | 100 . 70 . 70 . . . 22 . Volleys Fired 555 | . 52 15 96 40 17 87 125 76 47 Largest 2 | . 2 2 2 2 2 2 2 2 2 Hottest 91 | . 43 53 56 91 91 60 62 60 65 Shots Fired 1092 | . 104 30 191 80 34 169 245 150 89 Gun 730 | . 104 15 96 40 17 125 215 74 44 Cannon 357 | . . 15 95 36 17 44 30 76 44 Launcher 5 | . . . . 4 . . . . 1 Special . | . . . . . . . . . . Kinetic 1060 | . 104 30 191 55 28 169 245 150 88 Thermal 27 | . . . . 21 6 . . . . Explosive 5 | . . . . 4 . . . . 1 Electromagnetic . | . . . . . . . . . . Robot Hit Streak 27 | . 15 6 27 11 22 18 21 13 11 Robot Miss Streak 7 | . 4 6 3 4 1 3 4 7 4 Penetration Max . | . . . . . . . . . . Secondary Targets 4 | . 2 . . . . 1 1 . . Max Gunslinging Chain 1 | . 1 . . . . 1 1 . . Shots Hit Robots 729 | . 65 16 133 52 32 116 175 82 58 Core Hits 321 | . 31 7 47 32 9 43 73 44 35 Critical Kills 1 | . . . . . . . . . 1 Critical Parts Destroyed 6 | . . 1 . 2 . . 3 . . Critical Strikes 16 | . . 1 1 4 . 1 4 . 5 Destroy 8 | . . 1 . 2 . 1 3 . 1 Blast 8 | . . . 1 2 . . 1 . 4 Melee Attacks . | . . . . . . . . . . Impact . | . . . . . . . . . . Slashing . | . . . . . . . . . . Piercing . | . . . . . . . . . . Sneak Attacks . | . . . . . . . . . . Combat Hostiles . | . . . . . . . . . . Follow-up Attacks . | . . . . . . . . . . Damage Inflicted 14308 | . 875 290 2466 1441 626 1997 3192 1664 1757 Guns 8424 | . 875 149 1223 474 255 1364 2643 821 620 Cannons 5071 | . . 141 1243 461 371 633 548 843 831 Explosions 807 | . . . . 501 . . . . 306 Melee . | . . . . . . . . . . Ramming 6 | . . . . 5 . . 1 . . Kinetic 13127 | . 875 290 2466 678 515 1997 3191 1664 1451 Thermal 368 | . . . . 257 111 . . . . Explosive 807 | . . . . 501 . . . . 306 Electromagnetic . | . . . . . . . . . . Impact . | . . . . . . . . . . Slashing . | . . . . . . . . . . Piercing . | . . . . . . . . . . Highest Corruption 5 | . 1 1 2 3 . . . 5 4 Average Corruption 2 | . 1 1 2 2 . . . 3 2 Corruption Purged . | . . . . . . . . . . Corruption Blocked . | . . . . . . . . . . Effects 61 | . 2 5 5 31 . . . 11 7 Message Errors 14 | . . . 3 9 . . . 2 . Matter Fused 15 | . . 1 . 9 . . . 4 1 Heat Flow Errors 9 | . 1 2 1 4 . . . . 1 Energy Discharges 8 | . 1 1 . 3 . . . 1 2 Parts Fused 1 | . . . . 1 . . . . . Data Loss (minor) 4 | . . 1 . 1 . . . 1 1 Data Loss (major) 2 | . . . . . . . . 2 . Misfires 3 | . . . . 1 . . . . 2 Alerts 3 | . . . . 2 . . . 1 . Weapon Failures 2 | . . . 1 1 . . . . . Overload Shots . | . . . . . . . . . . Overflow Damage 78 | . . . 18 9 . . . 16 35 Projectiles 78 | . . . 18 9 . . . 16 35 Explosions . | . . . . . . . . . . Melee . | . . . . . . . . . . Knockbacks 40 | . . 1 12 1 1 6 6 8 5 Impact . | . . . . . . . . . . Kinetic 37 | . . 1 11 1 1 5 6 7 5 Secondary 3 | . . . 1 . . 1 . 1 . Self-Inflicted Damage 100 | . . . . 7 . 56 . . 37 Shots 3 | . . . . 1 . 1 . . 1 Rammed 1 | . . . . 1 . . . . . Targets Rammed 2 | . . . . 1 . . 1 . . Kicked . | . . . . . . . . . . Crushed 1 | . . . . . . . 1 . . Highest Temperature 274 | . 135 152 274 255 235 54 72 83 141 Average Temperature 36 | . 26 51 45 64 108 9 21 28 20 Received Heat Transfer 1830 | . 219 135 348 109 109 114 472 192 132 Siege Activations . | . . . . . . . . . . Martial Activations . | . . . . . . . . . . Shielding Activations . | . . . . . . . . . . Robots Disrupted . | . . . . . . . . . . Combat Hostiles . | . . . . . . . . . . Robots Corrupted 1 | . . . . . . . . 1 . Combat Hostiles 1 | . . . . . . . . 1 . Parts Fried 1 | . . . . . . . . 1 . Impact Corruptions 1 | . . . . . . . . 1 . Robots Melted . | . . . . . . . . . . Combat Hostiles . | . . . . . . . . . . Parts Melted . | . . . . . . . . . . Heat Transferred 629 | . . . . 444 185 . . . . Parts Sabotaged . | . . . . . . . . . . Parts Stolen . | . . . . . . . . . . Parts Stripped . | . . . . . . . . . . Power Chain Reactions . | . . . . . . . . . . Alert | -11 -10 -10 -9 -9 -8 -8 -8 -8 -7 ------- Run | Yrd Mat Min Mat Sto Mat Gar Mat Gar Fac Maximum Alert Level 4 | . . . 1 1 . 4 2 3 2 Low Security (%) 55 | 100 100 100 56 67 100 18 51 11 . Level 1 22 | . . . 43 32 . 10 12 25 70 Level 2 16 | . . . . . . 41 35 39 29 Level 3 4 | . . . . . . 23 . 23 . Level 4 . | . . . . . . 5 . . . Level 5 . | . . . . . . . . . . High Security . | . . . . . . . . . . Max Security . | . . . . . . . . . . Peak Influence 1119 | . 123 95 320 335 60 1119 545 970 513 Initial 545 | . . . . 127 16 29 545 126 508 Average 230 | . 22 11 162 162 17 562 246 543 356 Influence Increases 5827 | . 393 156 954 1035 157 1140 873 854 265 Destroy 0b10 Robot/C 3300 | . 220 120 620 580 100 500 600 400 160 Destroy 0b10 Robot/NC 165 | . 30 . 30 45 5 . 45 . 10 Destroy Leader 734 | . 76 20 178 168 32 20 160 30 50 Allied During Kill 150 | . . 1 . 149 . . . . . Successful Hack 93 | . 6 . 11 16 20 . 10 14 16 Disable Machine 105 | . 15 15 15 30 . . . 15 15 Anti-Garrison Action 700 | . . . . . . 500 . 200 . Destroy Structure 205 | . 1 . 10 32 . 75 13 60 14 Partial Spotted 30 | . . . 30 . . . . . . Lose Combat Pursuer 345 | . 45 . 60 15 . 45 45 135 . Influence Decreases 5528 | . 393 156 651 1297 153 66 1797 79 936 Entered New Map 1322 | . . . . 176 25 16 574 69 462 Time Decay 2915 | . 393 136 591 604 128 . 629 . 434 Lost Part 230 | . . 20 60 10 . 50 40 10 40 Lost Ally 80 | . . . . 80 . . . . . Purge Threat 981 | . . . . 427 . . 554 . . Squads Dispatched 17 | . 3 . 4 3 . . 5 . 2 Investigation 9 | . 2 . 3 2 . . 2 . . Extermination 2 | . . . . . . . . . 2 Reinforcement 6 | . 1 . 1 1 . . 3 . . Assault . | . . . . . . . . . . Garrison . | . . . . . . . . . . Intercept . | . . . . . . . . . . Searches Triggered . | . . . . . . . . . . Construction Impeded 1 | . . . 1 . . . . . . Haulers Reinforced . | . . . . . . . . . . Active Scanning Responses . | . . . . . . . . . . Cargo Convoy Interrupts . | . . . . . . . . . . Stealth | -11 -10 -10 -9 -9 -8 -8 -8 -8 -7 --------- Run | Yrd Mat Min Mat Sto Mat Gar Mat Gar Fac Distress Signals 4 | . 1 . 1 1 . . 1 . . Communications Jammed . | . . . . . . . . . . Distress Signals . | . . . . . . . . . . Times Spotted 245 | . 25 7 45 31 6 27 52 26 26 Peak Tracking Total 9 | . 6 3 5 9 3 5 4 5 6 Tactical Retreats 15 | . 1 . 4 1 . 2 3 4 . Traps | -11 -10 -10 -9 -9 -8 -8 -8 -8 -7 ------- Run | Yrd Mat Min Mat Sto Mat Gar Mat Gar Fac Traps Triggered 13 | . 2 . 2 2 . 3 . 3 1 Indirectly . | . . . . . . . . . . Trap Hack Attempts 43 | . . . . 43 . . . . . Triggered 1 | . . . . 1 . . . . . Disarmed 12 | . . . 6 . . . 6 . . Reprogrammed 1 | . . . . 1 . . . . . Reused . | . . . . . . . . . . Traps Extracted . | . . . . . . . . . . Installed . | . . . . . . . . . . Triggered . | . . . . . . . . . . Machines | -11 -10 -10 -9 -9 -8 -8 -8 -8 -7 ---------- Run | Yrd Mat Min Mat Sto Mat Gar Mat Gar Fac Machines Disabled 18 | . 1 1 1 2 . 8 . 4 1 Max in Single Turn 2 | . 1 1 1 1 . 2 . 1 1 Garrison Relay 9 | . . . . . . 6 . 3 . Phase Generator 1 | . . . . . . 1 . . . Machines Repaired . | . . . . . . . . . . Machines Dismantled . | . . . . . . . . . . Machines Sabotaged . | . . . . . . . . . . Overloaded Fab Kills . | . . . . . . . . . . Hacking | -11 -10 -10 -9 -9 -8 -8 -8 -8 -7 --------- Run | Yrd Mat Min Mat Sto Mat Gar Mat Gar Fac Machines Accessed 53 | . 7 . 12 12 4 2 11 2 3 Terminals 41 | . 4 . 10 10 2 2 8 2 3 Fabricators . | . . . . . . . . . . Repair Stations 4 | . 1 . . 1 1 . 1 . . Recycling Units 5 | . 2 . 2 1 . . . . . Scanalyzers 1 | . . . . . . . 1 . . Garrison Access 2 | . . . . . 1 . 1 . . Total Hacks 129 | . 19 . 31 24 11 6 26 3 9 Successful 61 | . 7 . 12 13 7 . 17 1 4 Failed 67 | . 12 . 18 11 4 6 9 2 5 Catastrophic 14 | . 2 . 3 2 . 2 3 1 1 Database Lockouts 1 | . . . 1 . . . . . . Manual 46 | . 14 . 10 13 3 . 6 . . Terminals 102 | . 15 . 27 21 6 6 15 3 9 Fabricators . | . . . . . . . . . . Repair Stations 12 | . 2 . . 2 3 . 5 . . Recycling Units 7 | . 2 . 4 1 . . . . . Scanalyzers 5 | . . . . . . . 5 . . Garrison Access 3 | . . . . . 2 . 1 . . Terminal Hacks 40 | . 3 . 10 10 4 . 8 1 4 Robot Analysis 6 | . 2 . 2 . 2 . . . . Prototype ID Bank 6 | . 1 . 1 1 1 . 1 . 1 Open Door 3 | . . . . 3 . . . . . Branch Access Points 3 | . . . 1 1 . . . . 1 Emergency Access Points 1 | . . . . . . . . 1 . Alert Level 4 | . . . 2 2 . . . . . Unreport Threat 7 | . . . . 3 . . 4 . . Locate Traps 1 | . . . . . . . . . 1 Disarm Traps 2 | . . . 1 . . . 1 . . Dispatch Records 1 | . . . 1 . . . . . . Hauler Manifests 4 | . . . 2 . 1 . 1 . . Zone Layout 2 | . . . . . . . 1 . 1 Fabricator Hacks . | . . . . . . . . . . Repair Station Hacks 10 | . 2 . . 2 2 . 4 . . Scan Component 5 | . 1 . . 1 1 . 2 . . Repair 5 | . 1 . . 1 1 . 2 . . Recycling Unit Hacks 5 | . 2 . 2 1 . . . . . Report Inventory 5 | . 2 . 2 1 . . . . . Scanalyzer 4 | . . . . . . . 4 . . Insert Component 1 | . . . . . . . 1 . . Analyze 3 | . . . . . . . 3 . . Garrison Access Hacks 2 | . . . . . 1 . 1 . . Unlock Access 2 | . . . . . 1 . 1 . . Unauthorized Hacks . | . . . . . . . . . . Terminals . | . . . . . . . . . . Fabricators . | . . . . . . . . . . Repair Stations . | . . . . . . . . . . Recycling Units . | . . . . . . . . . . Scanalyzers . | . . . . . . . . . . Garrison Access . | . . . . . . . . . . Data Cores Recovered 1 | . . . . . . . 1 . . Used . | . . . . . . . . . . Hacking Detections 40 | . 5 . 8 8 3 2 9 2 3 Full Trace Events 11 | . 2 . 4 1 . 1 2 1 . Feedback Events 1 | . . . . . . . . 1 . Corruption 1 | . . . . . . . . 1 . Feedback Blocked . | . . . . . . . . . . Robot Schematics Acquired . | . . . . . . . . . . Robots Built . | . . . . . . . . . . Authchips . | . . . . . . . . . . Time . | . . . . . . . . . . Total Robot Build Rating . | . . . . . . . . . . Part Schematics Acquired . | . . . . . . . . . . Parts Built . | . . . . . . . . . . Authchips . | . . . . . . . . . . Time . | . . . . . . . . . . Total Part Build Rating . | . . . . . . . . . . Parts Repaired 5 | . 1 . . 1 1 . 2 . . Time 182 | . 26 . . 32 32 . 92 . . Parts Recycled . | . . . . . . . . . . Recycled Matter . | . . . . . . . . . . Retrieved Matter . | . . . . . . . . . . Retrieved Components . | . . . . . . . . . . Parts Scanalyzed 1 | . . . . . . . 1 . . Part Schematics Acquired . | . . . . . . . . . . Parts Damaged . | . . . . . . . . . . Bothacking | -11 -10 -10 -9 -9 -8 -8 -8 -8 -7 ------------ Run | Yrd Mat Min Mat Sto Mat Gar Mat Gar Fac Used RIF Installer 3 | . . . . . . 2 . 1 . Command Fork 1 | . . . . . . . . 1 . Zone Cloak 1 | . . . . . . 1 . . . Robots Hacked . | . . . . . . . . . . Non-combat . | . . . . . . . . . . Combat . | . . . . . . . . . . Robot Hacks Applied . | . . . . . . . . . . Relay Couplers Released 38 | . . . . . . 25 . 13 . Machine Destruction 38 | . . . . . . 25 . 13 . Attached 1 | . . . . . . . . . 1 Fabnet Peak Effective % . | . . . . . . . . . . Robots Rewired . | . . . . . . . . . . Allies Hacked . | . . . . . . . . . . Hacks Repelled . | . . . . . . . . . . Allies | -11 -10 -10 -9 -9 -8 -8 -8 -8 -7 -------- Run | Yrd Mat Min Mat Sto Mat Gar Mat Gar Fac Total Allies 13 | . . 3 . 10 . . . . . Largest Group 10 | . . 3 . 10 2 . . . . Highest-Rated Group 88 | . . 40 . 88 16 . . . . Highest-Rated Ally 16 | . . 16 . 16 8 . . . . Total Orders . | . . . . . . . . . . Ally Attacks 101 | . . 10 . 89 2 . . . . Total Damage 875 | . . 87 . 764 24 . . . . Kills 18 | . . 1 . 17 . . . . . Allies Corrupted 2 | . . . . 2 . . . . . Allies Melted . | . . . . . . . . . . Intel | -11 -10 -10 -9 -9 -8 -8 -8 -8 -7 ------- Run | Yrd Mat Min Mat Sto Mat Gar Mat Gar Fac Active Infowar (turns) 8379 | . . . 1929 97 365 1414 2608 889 1077 Optics 6353 | . . . . . 365 1414 2608 889 1077 Sensors 2026 | . . . 1929 97 . . . . . Robot Analysis Total 6 | . 2 . 2 . 2 . . . . Derelict Logs Recovered 1 | . . 1 . . . . . . . Drone Launches . | . . . . . . . . . . Drone Recoveries . | . . . . . . . . . . Exploration | -11 -10 -10 -9 -9 -8 -8 -8 -8 -7 ------------- Run | Yrd Mat Min Mat Sto Mat Gar Mat Gar Fac Turns Passed 13014 | 84 1657 1030 1930 1957 366 1414 2610 889 1077 Spaces Moved 5572 | 44 614 409 955 682 149 699 1089 398 533 Core 16 | 16 . . . . . . . . . Treads 5556 | 28 614 409 955 682 149 699 1089 398 533 Legs . | . . . . . . . . . . Wheels . | . . . . . . . . . . Hover . | . . . . . . . . . . Flight . | . . . . . . . . . . Fastest Speed 50 | 50 160 240 160 160 160 160 156 162 158 Average Speed 183 | 164 234 240 160 224 160 160 162 162 168 Slowest Speed 320 | 250 320 240 240 240 160 240 240 162 243 Overloaded Moves . | . . . . . . . . . . Propulsion Burnouts . | . . . . . . . . . . Robots Hopped . | . . . . . . . . . . Potential Cave-ins . | . . . . . . . . . . Cave-ins Triggered . | . . . . . . . . . . Exploration Rate (%) 66 | 5 91 95 92 94 14 91 90 68 21 Regions Visited 9 Branch Regions 2 Pre-discovered Areas 1 | . . . . 1 . . . . . Known Exits Taken 3 | . . . 1 . 1 . 1 . . Unknown Exits Taken 4 | 1 1 1 . 1 . . . . . Scrap Searched 1 | . . 1 . . . . . . . Spaces Dug 2 | . . . 1 . . . 1 . . Terrain Destroyed 129 | . . . 4 27 . 79 6 . 13 Melee . | . . . . . . . . . . Projectile 18 | . . . 4 1 . . 6 . 7 AOE 111 | . . . . 26 . 79 . . 6 Terrain Rammed . | . . . . . . . . . . Walls Destroyed . | . . . . . . . . . . Machines Disabled . | . . . . . . . . . . Actions | -11 -10 -10 -9 -9 -8 -8 -8 -8 -7 --------- Run | Yrd Mat Min Mat Sto Mat Gar Mat Gar Fac Total 7351 | 53 727 428 1171 1035 246 823 1736 496 636 Wait 904 | . 35 . 77 238 59 5 459 7 24 Move 5564 | 43 613 408 954 681 149 697 1089 397 533 Hop . | . . . . . . . . . . Pick Up 87 | 4 18 1 17 8 6 6 14 2 11 Fast Attach 29 | 6 3 2 1 4 . 10 2 . 1 Attach 25 | . . 1 7 1 2 4 4 1 5 Detach 1 | . 1 . . . . . . . . Swap 60 | . 2 . 5 6 6 6 21 6 8 Drop 80 | . 3 1 14 12 7 8 21 7 7 Fire 555 | . 52 15 96 40 17 87 125 76 47 Melee . | . . . . . . . . . . Ram . | . . . . . . . . . . Kick . | . . . . . . . . . . Crush 2 | . . . . 1 . . 1 . . Escape Stasis . | . . . . . . . . . . Rewire 1 | . . . . 1 . . . . . Trap 43 | . . . . 43 . . . . . Miscellaneous . | . . . . . . . . . . Route ------- -11/Scrapyard -10/Materials (discovered 4 exits: *Mat x2 / [*Min] / [*Sub]) -10/Mines (discovered 3 exits: *Mat x2 / [*Sub]) -9/Materials (discovered 6 exits: *Mat x3 / *Min / *Sto x2) -9/Storage (discovered 2 exits: *Mat / Rec) -8/Materials -8/Garrison (discovered 3 exits: *Mat x3) -8/Materials (discovered 4 exits: *Fac x3 / Gar) -8/Garrison (discovered 2 exits: *Fac x2) -7/Factory (discovered 3 exits: [*Fac] / Low x2) History --------- Turn | Location | Event 21 | -11/Scrapyard | Discovered new exit (range 16) 85 | -11/Scrapyard | Entered Materials 304 | -10/Materials | Build established: Mutant 312 | -10/Materials | Discovered new exit (range 16) 656 | -10/Materials | Repaired Lgt. Treads 886 | -10/Materials | Discovered new exit (range 4) 997 | -10/Materials | Discovered new exit (range 15) 1122 | -10/Materials | Discovered new exit (range 5) 1742 | -10/Materials | Entered Mines 1832 | -10/Mines | Learned Materials emergency access door positions 1884 | -10/Mines | Found a damaged Exp. Sensor Array with a note attached 1889 | -10/Mines | Found Prototype Device 2121 | -10/Mines | Discovered new exit (range 12) 2197 | -10/Mines | Assisted by bots powering up and referring to "LRC-V3" 2219 | -10/Mines | Deemed a non-threat by the Exiles lab entrance 2292 | -10/Mines | YI-UF0 nonchalantly dropped a Grenade Launcher on the ground 2382 | -10/Mines | Discovered new exit (range 15) 2482 | -10/Mines | Discovered new exit (range 6) 2671 | -10/Mines | Lost 3 allies 2772 | -10/Mines | Entered Materials 2772 | -9/Materials | Evolved 2 slots: Propulsion x1, Utility x1 2790 | -9/Materials | Discovered new exit (range 10) 2798 | -9/Materials | Identified exit to Mines 2798 | -9/Materials | Identified exit to Storage 2798 | -9/Materials | Central database locked down 3084 | -9/Materials | Discovered new exit (range 7) 3569 | -9/Materials | Discovered new exit (range 16) 4210 | -9/Materials | Discovered new exit (range 16) 4702 | -9/Materials | Entered Storage 4872 | -9/Storage | Destroyed 13 combat bots 4912 | -9/Storage | Learned location of Armory (-4) 4942 | -9/Storage | Assisted by bots powering up and referring to "LRC-V3" 5096 | -9/Storage | Discovered new exit (range 16) 5253 | -9/Storage | Build established: Commander-Mutant 5278 | -9/Storage | Repaired Shield Generator 5826 | -9/Storage | Identified exit to Recycling 6311 | -9/Storage | Build established: Mutant 6659 | -9/Storage | Entered Materials 6659 | -8/Materials | Accompanied by 2 allies 6659 | -8/Materials | Evolved 2 slots: Propulsion x1, Utility x1 6872 | -8/Materials | Repaired Imp. Ion Engine 6955 | -8/Materials | Build established: Scavenger-Mutant 7025 | -8/Materials | Identified exit to Garrison 7025 | -8/Materials | Entered Garrison 7265 | -8/Garrison | Triggered checkpoint 7311 | -8/Garrison | Garrison Relay disabled 7355 | -8/Garrison | Garrison Relay disabled 7369 | -8/Garrison | Garrison Relay disabled 7438 | -8/Garrison | Phase Generator disabled 7439 | -8/Garrison | Spotted B-75 Beast 7555 | -8/Garrison | Triggered checkpoint 7672 | -8/Garrison | Garrison Relay disabled 7709 | -8/Garrison | Discovered new exit (range 11) 7723 | -8/Garrison | Installed Relay Interface Framework 7819 | -8/Garrison | Triggered checkpoint 7823 | -8/Garrison | Lost 4 parts (1p2u1w) 7915 | -8/Garrison | Triggered checkpoint 8062 | -8/Garrison | Discovered new exit (range 8) 8101 | -8/Garrison | Triggered checkpoint 8125 | -8/Garrison | Garrison Relay disabled 8221 | -8/Garrison | Triggered checkpoint 8242 | -8/Garrison | Discovered new exit (range 15) 8343 | -8/Garrison | Expanded RIF knowledge: Zone Cloak 8359 | -8/Garrison | Garrison Relay disabled 8439 | -8/Garrison | Entered Materials 8799 | -8/Materials | Discovered new exit (range 16) 9774 | -8/Materials | Discovered new exit (range 15) 10349 | -8/Materials | Discovered new exit (range 13) 10352 | -8/Materials | Core integrity fell below 50% 10393 | -8/Materials | Lost 3 parts (1p1n1u) 10709 | -8/Materials | Repaired Shield Generator 10770 | -8/Materials | Repaired Enh. Autogun? 11049 | -8/Materials | Identified exit to Garrison 11049 | -8/Materials | Entered Garrison 11167 | -8/Garrison | Triggered checkpoint 11182 | -8/Garrison | Garrison Relay disabled 11349 | -8/Garrison | Triggered checkpoint 11489 | -8/Garrison | Triggered checkpoint 11534 | -8/Garrison | Garrison Relay disabled 11572 | -8/Garrison | Discovered new exit (range 9) 11679 | -8/Garrison | Triggered checkpoint 11729 | -8/Garrison | Triggered checkpoint 11788 | -8/Garrison | Garrison Relay disabled 11854 | -8/Garrison | Discovered new exit (range 12) 11902 | -8/Garrison | Expanded RIF knowledge: Command Fork 11938 | -8/Garrison | Entered Factory 11938 | -7/Factory | Evolved 2 slots: Utility x2 12366 | -7/Factory | Discovered new exit (range 10) 12392 | -7/Factory | Identified exit to Lower Caves 12416 | -7/Factory | Build established: Mutant 12625 | -7/Factory | Lost 3 parts (2n1w) 13015 | -7/Factory | Self-destructed Last Messages --------------- 12970_ Detecting nearby Garrison Access. 12975_ as-39858 destroyed. 12978_ as-62776 destroyed. 12983_ U-05 Engineer lays Concrete. 12986_ U-05 Engineer builds a Wall. 12990_ System corrupted: Component data lost. 12990_ U-05 Engineer knocked back. 12992_ as-53900 destroyed. 12995_ as-83160 sneak attacks. 12995_ as-32715 knocked back. 12998_ as-32715 destroyed. 13000_ as-83160 knocked back. 13003_ Destroyed Asb. Hover Unit. 13003_ as-83160 destroyed. 13007_ as-25814 destroyed. 13012_ Lgt. Treads destroyed. 13013_ as-11764 destroyed. 13013_ as-40901 destroyed. 13013_ as-30403 destroyed. 13013_ as-64392 destroyed. Map ----- +----------------------------------------------------+ | ?????????????????????????????????????????????????? | | ?????????????????????????????????????????????????? | | ?????????????????????????????????????????????????? | | ?????????????????????????????????????????????????? | | ?????????????????????????????????????????????????? | | ?????????????????????????????????????????????????? | | ?????????????????????????????????????????????????? | | ?????????????????????????????????????????????????? | | ?????????????????????????????????????????????????? | | ?????????????????????????????????????????????????? | | ??#??????????????????????????????????????????????? | | ? ???????????????????????????????????????????????? | | ? ???????????????????????????????????????????????? | | ????????????????????????????????????????????????? | | ????????????????????????????????????????????????? | | ??????????????????????????????????????????????? | | ???????????????????????????????????????????????? | | ?????????????????????????????????????????????????? | | ??????????????????????????????? #??????????????? | | ????????????????????????????? #??????????????? | | ? ???????????????????????????? ????????????????? | | ?????????????????????????????? ?????????????????? | | #############################+#############??????? | | m ????? | | ^ % k ????? | | ^ % @a% % ????? | | % u % %% ????? | | a ????? | | ########+############### ######## "?????? | | #?# ##????????### ????????????????? | | ### """" ##??????????? """"" #??????????????? | | # + ""R" ! #???????????? """"" #??????????????? | | ### ""%" #???????????? """ #??????????????? | | #?# #???????????? a #??????????????? | | #?# """ !#???????????? a """ #??????????????? | | ]#?# """ #???????????? [ a G" #??????????????? | | #?# """ #???????????? ???????????????????? | | #?# #????????????? ???????????????????? | | #?##########?????????????###???????????????????? | | #??????????????????????????????????????????????? | | ? #??????????????????????????????????????????????? | | ??#??????????????????????????????????????????????? | | ?????????????????????????????????????????????????? | | ?????????????????????????????????????????????????? | | ?????????????????????????????????????????????????? | | ?????????????????????????????????????????????????? | | ?????????????????????????????????????????????????? | | ?????????????????????????????????????????????????? | | ?????????????????????????????????????????????????? | | ?????????????????????????????????????????????????? | +----------------------------------------------------+ Best States ------------- Heat Dissipation 34 Energy Generation 16 Energy Capacity 290 Matter Stores 300 Matter Capacity 300 Sight Range 20 Robot Scan Range 14 Terrain Scan Density 10 Armor Coverage 225 Utility Shielding 66 Evasion (%) 40 Recoil Reduction 4 Kinecelleration 30 Offensive Hacking 10 Relay Coupler Types 1 Relay Coupler Value 28 Item Schematics ----------------- None Robot Schematics ------------------ None Fabricated ------------ Nothing Repaired ---------- Lgt. Treads | 29% | -10/Materials Shield Generator | 30% | -9/Storage Imp. Ion Engine | 21% | -8/Materials Shield Generator | 13% | -8/Materials Enh. Autogun | 15% | -8/Materials Alien Tech Used ----------------- None Achievements -------------- None Challenges ------------ None Game ------ Seed DimensionalGodAutogun Manual? 0 Play Time 01:08:20 Cumulative 178.1 hours Start 2025.06.30 @ 10:40:18 End 2025.07.04 @ 10:33:50 Sessions 3 Manual Loads 0 Difficulty Rogue Special Mode None Game No. 226 Rogue 226 Adventurer 0 Explorer 0 Win Type - Total 3 Types 3/0/0/0/0/0/0/0/0/0 Lore% 66 Gallery% 55 Achievement% 53 Wizard Run 0 Options --------- Layout 1 ASCII 0 Keyboard 0 Movement Numpad Keybinds 0 Fullscreen 2 Font 24/Smallcaps Map View 50x35 Zoom Use 0% Tactical HUD 1 Map Filters NONE Filters NONE Steam 1 RUN: 85f082c7-d1a7-4359-bad3-b2ab36b1e840